[Event "Early-Titled-Tuesday-Blitz-April-02-2024"]
[Site "Chess.com"]
[Date "2024.04.02"]
[Round "1"]
[White "Navyblue1"]
[Black "arenal72"]
[Result "0-1"]
[WhiteElo "2282"]
[BlackElo "2614"]
[TimeControl "180+1"]
[EndTime "8:06:17 PDT"]
[Termination "arenal72 won by resignation"]

1. d4 {[%clk 0:02:58.4]} 1... d6 {[%clk 0:02:58.5]} 2. c4 {[%clk 0:02:58.7]}
2... e5 {[%clk 0:02:57.7]} 3. Nf3 {[%clk 0:02:52.6]} 3... e4 {[%clk 0:02:56.6]}
4. Ng5 {[%clk 0:02:52.2]} 4... f5 {[%clk 0:02:56.3]} 5. Nh3 {[%clk 0:02:51]}
5... Nf6 {[%clk 0:02:54.8]} 6. g3 {[%clk 0:02:48.1]} 6... Be7 {[%clk 0:02:46.2]}
7. Bg2 {[%clk 0:02:48]} 7... O-O {[%clk 0:02:46.2]} 8. O-O {[%clk 0:02:47.6]}
8... c6 {[%clk 0:02:45.7]} 9. Nc3 {[%clk 0:02:46.1]} 9... Be6 {[%clk 0:02:34]}
10. d5 {[%clk 0:02:37.4]} 10... Bf7 {[%clk 0:02:31.2]} 11. f3 {[%clk 0:02:32.4]}
11... exf3 {[%clk 0:02:29.1]} 12. exf3 {[%clk 0:02:29.9]} 12... cxd5 {[%clk
0:02:27.9]} 13. cxd5 {[%clk 0:02:26.9]} 13... Nbd7 {[%clk 0:02:27.1]} 14. f4
{[%clk 0:02:11.7]} 14... Qb6+ {[%clk 0:02:15.5]} 15. Kh1 {[%clk 0:02:05.9]}
15... Rac8 {[%clk 0:02:14.7]} 16. Nf2 {[%clk 0:02:03.8]} 16... Rfe8 {[%clk
0:02:09.4]} 17. Qd3 {[%clk 0:01:52.4]} 17... Nc5 {[%clk 0:02:06.8]} 18. Qd4
{[%clk 0:01:30.2]} 18... Nfd7 {[%clk 0:01:50.3]} 19. Rb1 {[%clk 0:01:08.6]}
19... Bf6 {[%clk 0:01:48.2]} 20. Qc4 {[%clk 0:00:54]} 20... Ne4 {[%clk
0:01:46.8]} 21. Qxc8 {[%clk 0:00:42.1]} 21... Nxf2+ {[%clk 0:01:41.4]} 22. Rxf2
{[%clk 0:00:42]} 22... Rxc8 {[%clk 0:01:41.9]} 23. Nd1 {[%clk 0:00:33.8]} 23...
Bd4 {[%clk 0:01:31.7]} 24. Re2 {[%clk 0:00:31.6]} 24... Bh5 {[%clk 0:01:30.4]}
25. Re1 {[%clk 0:00:28.9]} 25... Nf6 {[%clk 0:01:17]} 26. Be3 {[%clk 0:00:27.2]}
26... Bxd1 {[%clk 0:01:10.8]} 27. Bxd4 {[%clk 0:00:26.3]} 27... Qxd4 {[%clk
0:01:10.2]} 28. Rexd1 {[%clk 0:00:26.4]} 28... Qb6 {[%clk 0:01:07.8]} 29. Re1
{[%clk 0:00:22]} 29... Ng4 {[%clk 0:01:05.9]} 30. h3 {[%clk 0:00:19.3]} 30...
Ne3 {[%clk 0:01:01.6]} 31. Kh2 {[%clk 0:00:19.8]} 31... Rc2 {[%clk 0:01:01.1]}
32. Rg1 {[%clk 0:00:19.3]} 32... Rxb2 {[%clk 0:01:00.1]} 33. Rxb2 {[%clk
0:00:18.5]} 33... Qxb2 {[%clk 0:01:01]} 34. Kh1 {[%clk 0:00:17.7]} 34... Qxa2
{[%clk 0:00:58.3]} 35. Bf3 {[%clk 0:00:17.4]} 35... Qf2 {[%clk 0:00:58.6]} 36.
Bg2 {[%clk 0:00:16.4]} 36... Qxg3 {[%clk 0:00:57.2]} 0-1

[Event "Early-Titled-Tuesday-Blitz-April-02-2024"]
[Site "Chess.com"]
[Date "2024.04.02"]
[Round "1"]
[White "LiadCuba"]
[Black "WCM-Mexicana"]
[Result "1-0"]
[WhiteElo "2560"]
[BlackElo "2014"]
[TimeControl "180+1"]
[EndTime "8:06:17 PDT"]
[Termination "LiadCuba won by checkmate"]

1. d4 {[%clk 0:02:33.8]} 1... Nf6 {[%clk 0:03:00.9]} 2. c4 {[%clk 0:02:30.7]}
2... d5 {[%clk 0:01:40.4]} 3. cxd5 {[%clk 0:02:28.6]} 3... Nxd5 {[%clk
0:01:40.2]} 4. Nf3 {[%clk 0:02:28.3]} 4... g6 {[%clk 0:01:40.3]} 5. e4 {[%clk
0:02:28.6]} 5... Nb6 {[%clk 0:01:40.1]} 6. Nc3 {[%clk 0:02:29.2]} 6... Bg7
{[%clk 0:01:40.5]} 7. Bg5 {[%clk 0:02:28.6]} 7... O-O {[%clk 0:01:40.3]} 8. Be2
{[%clk 0:02:28.8]} 8... h6 {[%clk 0:01:35.5]} 9. Bh4 {[%clk 0:02:26.8]} 9... g5
{[%clk 0:01:34.4]} 10. Bg3 {[%clk 0:02:27]} 10... Bg4 {[%clk 0:01:33.9]} 11. Ne5
{[%clk 0:02:10.7]} 11... Bxe2 {[%clk 0:01:33.5]} 12. Nxe2 {[%clk 0:02:11]} 12...
c5 {[%clk 0:01:29.9]} 13. d5 {[%clk 0:02:03.1]} 13... N8d7 {[%clk 0:01:24.6]}
14. Nxd7 {[%clk 0:02:00.3]} 14... Qxd7 {[%clk 0:01:25.5]} 15. Nc3 {[%clk
0:01:57]} 15... Nc4 {[%clk 0:01:24.2]} 16. Qe2 {[%clk 0:01:54.3]} 16... Ne5
{[%clk 0:01:17]} 17. O-O {[%clk 0:01:53]} 17... a6 {[%clk 0:01:17]} 18. Rad1
{[%clk 0:01:45.5]} 18... b5 {[%clk 0:01:16.7]} 19. f4 {[%clk 0:01:41.3]} 19...
Nc4 {[%clk 0:01:11.4]} 20. fxg5 {[%clk 0:01:34.7]} 20... hxg5 {[%clk 0:01:12.3]}
21. e5 {[%clk 0:01:33.6]} 21... Rad8 {[%clk 0:01:03.2]} 22. Kh1 {[%clk
0:01:31.9]} 22... Nb6 {[%clk 0:00:58.1]} 23. d6 {[%clk 0:01:23.1]} 23... exd6
{[%clk 0:00:57.3]} 24. Rxd6 {[%clk 0:01:22.1]} 24... Qb7 {[%clk 0:00:54.3]} 25.
Qg4 {[%clk 0:01:16]} 25... Rde8 {[%clk 0:00:37.4]} 26. Ne4 {[%clk 0:01:09.1]}
26... Nd5 {[%clk 0:00:12.7]} 27. Qxg5 {[%clk 0:01:01.3]} 27... Qe7 {[%clk
0:00:06.5]} 28. Nf6+ {[%clk 0:00:52.1]} 28... Nxf6 {[%clk 0:00:06.6]} 29. exf6
{[%clk 0:00:52.2]} 29... Qe2 {[%clk 0:00:05.4]} 30. Qxg7# {[%clk 0:00:51.9]} 1-0

[Event "Early-Titled-Tuesday-Blitz-April-02-2024"]
[Site "Chess.com"]
[Date "2024.04.02"]
[Round "1"]
[White "promen1999"]
[Black "VanRommel28"]
[Result "1-0"]
[WhiteElo "2884"]
[BlackElo "2506"]
[TimeControl "180+1"]
[EndTime "8:06:18 PDT"]
[Termination "promen1999 won by resignation"]

1. Nf3 {[%clk 0:03:00.9]} 1... g6 {[%clk 0:02:36.4]} 2. c4 {[%clk 0:02:59.4]}
2... Bg7 {[%clk 0:02:36.7]} 3. d4 {[%clk 0:02:59.8]} 3... d6 {[%clk 0:02:35.3]}
4. Nc3 {[%clk 0:02:59.8]} 4... Nf6 {[%clk 0:02:32.1]} 5. e4 {[%clk 0:02:58.6]}
5... O-O {[%clk 0:02:32.6]} 6. Be2 {[%clk 0:02:57.1]} 6... Bg4 {[%clk
0:02:27.5]} 7. Be3 {[%clk 0:02:55]} 7... Nfd7 {[%clk 0:02:27.3]} 8. Qd2 {[%clk
0:02:52]} 8... Nc6 {[%clk 0:02:19.3]} 9. d5 {[%clk 0:02:49.1]} 9... Bxf3 {[%clk
0:02:11]} 10. gxf3 {[%clk 0:02:49.9]} 10... Ncb8 {[%clk 0:02:07.4]} 11. h4
{[%clk 0:02:50.4]} 11... h5 {[%clk 0:02:06.7]} 12. O-O-O {[%clk 0:02:50]} 12...
a6 {[%clk 0:01:58.2]} 13. Bh6 {[%clk 0:02:49.7]} 13... b5 {[%clk 0:01:46.9]} 14.
Rdg1 {[%clk 0:02:43.3]} 14... Nf6 {[%clk 0:01:42.5]} 15. Bxg7 {[%clk 0:02:36.3]}
15... Kxg7 {[%clk 0:01:43.4]} 16. f4 {[%clk 0:02:32]} 16... b4 {[%clk 0:01:38]}
17. Nd1 {[%clk 0:02:31.4]} 17... Nbd7 {[%clk 0:01:35.4]} 18. f5 {[%clk
0:02:27.5]} 18... c6 {[%clk 0:01:30.1]} 19. fxg6 {[%clk 0:02:24.5]} 19... fxg6
{[%clk 0:01:29.8]} 20. Qg5 {[%clk 0:02:17.1]} 20... Ne5 {[%clk 0:01:25.5]} 21.
Bxh5 {[%clk 0:02:12]} 21... Nxe4 {[%clk 0:00:45.2]} 22. Qe3 {[%clk 0:02:11.2]}
22... Nf6 {[%clk 0:00:41.9]} 23. Bxg6 {[%clk 0:02:09.8]} 23... cxd5 {[%clk
0:00:34]} 24. Bf5+ {[%clk 0:01:54.5]} 24... Kf7 {[%clk 0:00:31.6]} 25. f4 {[%clk
0:01:54.9]} 25... Qc7 {[%clk 0:00:24.3]} 26. fxe5 {[%clk 0:01:53.5]} 26... dxe5
{[%clk 0:00:24.4]} 27. Kb1 {[%clk 0:01:40]} 27... e6 {[%clk 0:00:21.8]} 28. Bc2
{[%clk 0:01:17.3]} 28... Rg8 {[%clk 0:00:20.4]} 29. Rf1 {[%clk 0:01:15.2]} 29...
Ke7 {[%clk 0:00:20.2]} 30. cxd5 {[%clk 0:01:12.2]} 30... Nxd5 {[%clk 0:00:18.2]}
31. Qh6 {[%clk 0:01:08.9]} 31... Kd6 {[%clk 0:00:18.2]} 32. Nf2 {[%clk
0:01:07.1]} 32... Rac8 {[%clk 0:00:18.2]} 33. Ne4+ {[%clk 0:01:07]} 33... Kc6
{[%clk 0:00:18.8]} 34. Qxe6+ {[%clk 0:01:02.4]} 34... Kb7 {[%clk 0:00:18.5]} 35.
Qxd5+ {[%clk 0:01:02.1]} 35... Ka7 {[%clk 0:00:19.1]} 36. Bb3 {[%clk 0:01:00]}
1-0

[Event "Early-Titled-Tuesday-Blitz-April-02-2024"]
[Site "Chess.com"]
[Date "2024.04.02"]
[Round "1"]
[White "KubaGepard"]
[Black "JaackCamel"]
[Result "1-0"]
[WhiteElo "2584"]
[BlackElo "2186"]
[TimeControl "180+1"]
[EndTime "8:06:19 PDT"]
[Termination "KubaGepard won on time"]

1. e4 {[%clk 0:02:59.7]} 1... e6 {[%clk 0:02:59.4]} 2. d4 {[%clk 0:02:59]} 2...
d5 {[%clk 0:02:58.4]} 3. Nc3 {[%clk 0:02:59.6]} 3... Bb4 {[%clk 0:02:56.9]} 4.
e5 {[%clk 0:02:58.2]} 4... Ne7 {[%clk 0:02:56]} 5. Bd2 {[%clk 0:02:56.8]} 5...
b6 {[%clk 0:02:43.9]} 6. Nce2 {[%clk 0:02:52.3]} 6... Bxd2+ {[%clk 0:02:40.6]}
7. Qxd2 {[%clk 0:02:53.2]} 7... Ba6 {[%clk 0:02:36.7]} 8. f4 {[%clk 0:02:51.9]}
8... c5 {[%clk 0:02:32.6]} 9. Nf3 {[%clk 0:02:49.9]} 9... Nbc6 {[%clk
0:02:27.6]} 10. c3 {[%clk 0:02:36.2]} 10... O-O {[%clk 0:02:23.4]} 11. g3 {[%clk
0:02:32.5]} 11... Nf5 {[%clk 0:02:16.9]} 12. Bh3 {[%clk 0:02:24.3]} 12... Bxe2
{[%clk 0:02:12.4]} 13. Qxe2 {[%clk 0:02:20.8]} 13... cxd4 {[%clk 0:02:04.4]} 14.
Bxf5 {[%clk 0:02:20.2]} 14... exf5 {[%clk 0:02:02.7]} 15. cxd4 {[%clk
0:02:20.1]} 15... Qe7 {[%clk 0:01:49.9]} 16. O-O {[%clk 0:02:18.1]} 16... h6
{[%clk 0:01:45.4]} 17. Rac1 {[%clk 0:02:16.2]} 17... Rac8 {[%clk 0:01:43.1]} 18.
a3 {[%clk 0:02:10.8]} 18... Rfe8 {[%clk 0:01:39]} 19. b4 {[%clk 0:02:07.8]}
19... Qe6 {[%clk 0:01:37.6]} 20. Qa6 {[%clk 0:02:04.7]} 20... Qd7 {[%clk
0:01:06.3]} 21. Qa4 {[%clk 0:01:52.1]} 21... Qb7 {[%clk 0:00:58.9]} 22. Qb3
{[%clk 0:01:50.8]} 22... Red8 {[%clk 0:00:50.7]} 23. Rc2 {[%clk 0:01:47.5]}
23... Ne7 {[%clk 0:00:47.6]} 24. Rfc1 {[%clk 0:01:46.4]} 24... Rxc2 {[%clk
0:00:46.9]} 25. Rxc2 {[%clk 0:01:47.3]} 25... Rc8 {[%clk 0:00:45.3]} 26. b5
{[%clk 0:01:43.2]} 26... Rc4 {[%clk 0:00:41.2]} 27. Kf2 {[%clk 0:01:33.9]} 27...
Qc8 {[%clk 0:00:36.4]} 28. Ne1 {[%clk 0:01:31.8]} 28... Rxc2+ {[%clk 0:00:31]}
29. Qxc2 {[%clk 0:01:32]} 29... Qxc2+ {[%clk 0:00:30]} 30. Nxc2 {[%clk
0:01:32.9]} 30... Kf8 {[%clk 0:00:24]} 31. Ne3 {[%clk 0:01:30.8]} 31... Ke8
{[%clk 0:00:22.4]} 32. h3 {[%clk 0:01:27.4]} 32... Kd7 {[%clk 0:00:21.9]} 33. g4
{[%clk 0:01:25.1]} 33... Ke6 {[%clk 0:00:20.8]} 34. Kg3 {[%clk 0:01:23.3]} 34...
g6 {[%clk 0:00:19.8]} 35. Kh4 {[%clk 0:01:20.1]} 35... fxg4 {[%clk 0:00:10.4]}
36. hxg4 {[%clk 0:01:19.5]} 36... Kd7 {[%clk 0:00:07.2]} 37. f5 {[%clk
0:01:18.5]} 37... Kc7 {[%clk 0:00:05.9]} 38. f6 {[%clk 0:01:17.7]} 1-0

[Event "Early-Titled-Tuesday-Blitz-April-02-2024"]
[Site "Chess.com"]
[Date "2024.04.02"]
[Round "1"]
[White "Fengwi"]
[Black "IMchanged"]
[Result "0-1"]
[WhiteElo "2364"]
[BlackElo "2669"]
[TimeControl "180+1"]
[EndTime "8:06:21 PDT"]
[Termination "IMchanged won by resignation"]

1. Nf3 {[%clk 0:02:56.3]} 1... d5 {[%clk 0:02:45.5]} 2. b3 {[%clk 0:02:53.3]}
2... Bg4 {[%clk 0:02:42.8]} 3. e3 {[%clk 0:02:50.7]} 3... Nd7 {[%clk 0:02:42.3]}
4. Bb2 {[%clk 0:02:49.3]} 4... Ngf6 {[%clk 0:02:41.4]} 5. d3 {[%clk 0:02:44.2]}
5... e6 {[%clk 0:02:37.6]} 6. Nbd2 {[%clk 0:02:43.3]} 6... Bd6 {[%clk
0:02:36.4]} 7. h3 {[%clk 0:02:43.3]} 7... Bh5 {[%clk 0:02:35.9]} 8. g4 {[%clk
0:02:41.3]} 8... Bg6 {[%clk 0:02:33.1]} 9. Nh4 {[%clk 0:02:41.2]} 9... a5 {[%clk
0:02:28.4]} 10. a3 {[%clk 0:02:40]} 10... Qe7 {[%clk 0:02:25.3]} 11. Bg2 {[%clk
0:02:35.3]} 11... Be5 {[%clk 0:02:21.2]} 12. d4 {[%clk 0:02:28.9]} 12... Bd6
{[%clk 0:02:18.4]} 13. Nxg6 {[%clk 0:02:26.1]} 13... hxg6 {[%clk 0:02:18.1]} 14.
c4 {[%clk 0:02:23]} 14... c6 {[%clk 0:02:18.2]} 15. g5 {[%clk 0:02:20.9]} 15...
Nh5 {[%clk 0:02:08.7]} 16. h4 {[%clk 0:02:19]} 16... f6 {[%clk 0:02:04.6]} 17.
Qg4 {[%clk 0:02:09.5]} 17... f5 {[%clk 0:01:58.6]} 18. Qe2 {[%clk 0:02:03.4]}
18... a4 {[%clk 0:01:57.7]} 19. b4 {[%clk 0:01:58.8]} 19... Kf7 {[%clk
0:01:49.7]} 20. Rh3 {[%clk 0:01:07]} 20... Rab8 {[%clk 0:01:32.2]} 21. c5 {[%clk
0:00:45.5]} 21... Bc7 {[%clk 0:01:30.5]} 22. f4 {[%clk 0:00:45.8]} 22... b6
{[%clk 0:01:23.4]} 23. cxb6 {[%clk 0:00:45.1]} 23... Bxb6 {[%clk 0:01:23.7]} 24.
Rc1 {[%clk 0:00:45.2]} 24... Rbc8 {[%clk 0:01:23.7]} 25. Nf3 {[%clk 0:00:38.7]}
25... Qd6 {[%clk 0:01:20.6]} 26. Kf2 {[%clk 0:00:34.5]} 26... Qb8 {[%clk
0:01:16]} 27. Rhh1 {[%clk 0:00:32.2]} 27... Qd6 {[%clk 0:01:14.6]} 28. Rc2
{[%clk 0:00:29.3]} 28... Rc7 {[%clk 0:01:13.9]} 29. Rhc1 {[%clk 0:00:28.5]}
29... Ra8 {[%clk 0:01:14.2]} 30. Rc3 {[%clk 0:00:20.5]} 30... Ba7 {[%clk
0:01:14.4]} 31. Qc2 {[%clk 0:00:20.1]} 31... Rac8 {[%clk 0:01:12.6]} 32. Qxa4
{[%clk 0:00:19.9]} 32... Bb6 {[%clk 0:01:13.1]} 33. Qc2 {[%clk 0:00:19.8]} 33...
Ba7 {[%clk 0:01:13.1]} 34. b5 {[%clk 0:00:17.6]} 34... c5 {[%clk 0:01:12.1]} 35.
dxc5 {[%clk 0:00:17.1]} 35... Rxc5 {[%clk 0:01:12.1]} 36. Rxc5 {[%clk
0:00:16.5]} 36... Rxc5 {[%clk 0:01:12]} 37. Qa4 {[%clk 0:00:14]} 37... Qb6
{[%clk 0:01:08.4]} 38. Rxc5 {[%clk 0:00:12.8]} 38... Nxc5 {[%clk 0:01:08.1]} 39.
Qb4 {[%clk 0:00:09.8]} 39... Nd3+ {[%clk 0:01:07.8]} 0-1

[Event "Early-Titled-Tuesday-Blitz-April-02-2024"]
[Site "Chess.com"]
[Date "2024.04.02"]
[Round "1"]
[White "HeroWilczek"]
[Black "Jospem"]
[Result "0-1"]
[WhiteElo "2546"]
[BlackElo "3058"]
[TimeControl "180+1"]
[EndTime "8:06:27 PDT"]
[Termination "Jospem won by checkmate"]

1. e4 {[%clk 0:03:00.9]} 1... c5 {[%clk 0:03:00]} 2. Nf3 {[%clk 0:02:58.7]} 2...
d6 {[%clk 0:03:00.4]} 3. Bb5+ {[%clk 0:02:58]} 3... Nd7 {[%clk 0:03:00.7]} 4. c3
{[%clk 0:02:58.1]} 4... a6 {[%clk 0:03:00.3]} 5. Ba4 {[%clk 0:02:58.2]} 5... Nf6
{[%clk 0:03:00.2]} 6. Qe2 {[%clk 0:02:58.7]} 6... b5 {[%clk 0:03:00.3]} 7. Bc2
{[%clk 0:02:58.9]} 7... Bb7 {[%clk 0:03:00.9]} 8. O-O {[%clk 0:02:57.3]} 8... e5
{[%clk 0:02:59.7]} 9. d4 {[%clk 0:02:55.3]} 9... Be7 {[%clk 0:02:59.7]} 10. d5
{[%clk 0:02:51.5]} 10... c4 {[%clk 0:02:49.8]} 11. b4 {[%clk 0:02:42.8]} 11...
cxb3 {[%clk 0:02:45.8]} 12. axb3 {[%clk 0:02:43.5]} 12... O-O {[%clk 0:02:46.4]}
13. b4 {[%clk 0:02:35.3]} 13... Nb6 {[%clk 0:02:45.2]} 14. h3 {[%clk 0:02:22.5]}
14... Nfd7 {[%clk 0:02:45]} 15. Be3 {[%clk 0:02:18.8]} 15... Kh8 {[%clk
0:02:39.6]} 16. Nbd2 {[%clk 0:02:16.9]} 16... f5 {[%clk 0:02:39.7]} 17. exf5
{[%clk 0:02:09.7]} 17... Nxd5 {[%clk 0:02:39.7]} 18. Ne4 {[%clk 0:01:58.4]}
18... Qc7 {[%clk 0:02:08.1]} 19. Qd2 {[%clk 0:01:49.2]} 19... Rac8 {[%clk
0:02:00.9]} 20. Ra3 {[%clk 0:01:48.4]} 20... N5f6 {[%clk 0:01:46.7]} 21. Neg5
{[%clk 0:01:37.5]} 21... Qc6 {[%clk 0:01:47]} 22. Ne6 {[%clk 0:01:16.9]} 22...
Rfe8 {[%clk 0:01:47.1]} 23. Ne1 {[%clk 0:01:02.4]} 23... Nf8 {[%clk 0:01:44.1]}
24. Bd1 {[%clk 0:00:58.9]} 24... Nxe6 {[%clk 0:01:43.5]} 25. fxe6 {[%clk
0:00:59.8]} 25... Qc4 {[%clk 0:01:42.2]} 26. Be2 {[%clk 0:00:57.4]} 26... Qxe6
{[%clk 0:01:42]} 27. Bf3 {[%clk 0:00:56.7]} 27... d5 {[%clk 0:01:41.7]} 28. Bg5
{[%clk 0:00:53.3]} 28... Qf7 {[%clk 0:01:38.1]} 29. Nc2 {[%clk 0:00:50.7]} 29...
Rcd8 {[%clk 0:01:34.8]} 30. Re1 {[%clk 0:00:49.3]} 30... h6 {[%clk 0:01:33]} 31.
Bh4 {[%clk 0:00:46.5]} 31... Ne4 {[%clk 0:01:32.5]} 32. Bxe4 {[%clk 0:00:21.3]}
32... dxe4 {[%clk 0:01:33.4]} 33. Qe2 {[%clk 0:00:18.3]} 33... Bxh4 {[%clk
0:01:23.6]} 34. Ne3 {[%clk 0:00:18.8]} 34... Rf8 {[%clk 0:01:23.3]} 35. Rf1
{[%clk 0:00:18.1]} 35... Bg5 {[%clk 0:01:23.9]} 36. Ng4 {[%clk 0:00:17.3]} 36...
e3 {[%clk 0:01:23.6]} 37. Nxe5 {[%clk 0:00:15.4]} 37... exf2+ {[%clk 0:01:21.5]}
38. Kh1 {[%clk 0:00:13.8]} 38... Qf5 {[%clk 0:01:21.3]} 39. Nf3 {[%clk
0:00:12.2]} 39... Bh4 {[%clk 0:01:19.4]} 40. c4 {[%clk 0:00:11.5]} 40... Bg3
{[%clk 0:01:18.4]} 41. c5 {[%clk 0:00:10.5]} 41... Rd4 {[%clk 0:01:17]} 42. Re3
{[%clk 0:00:10.1]} 42... Rh4 {[%clk 0:01:16.5]} 43. Nxh4 {[%clk 0:00:03.8]}
43... Qxh3# {[%clk 0:01:16.3]} 0-1

[Event "Early-Titled-Tuesday-Blitz-April-02-2024"]
[Site "Chess.com"]
[Date "2024.04.02"]
[Round "1"]
[White "ritanovikova"]
[Black "MrChessSponge"]
[Result "0-1"]
[WhiteElo "2122"]
[BlackElo "2569"]
[TimeControl "180+1"]
[EndTime "8:06:27 PDT"]
[Termination "MrChessSponge won by resignation"]

1. e4 {[%clk 0:02:59.1]} 1... c6 {[%clk 0:02:58.8]} 2. d4 {[%clk 0:02:58.9]}
2... d5 {[%clk 0:02:58.5]} 3. exd5 {[%clk 0:02:58.7]} 3... cxd5 {[%clk
0:02:57.9]} 4. Bd3 {[%clk 0:02:59]} 4... Nc6 {[%clk 0:02:56.6]} 5. Be3 {[%clk
0:02:57.5]} 5... Nf6 {[%clk 0:02:55.4]} 6. c3 {[%clk 0:02:56.9]} 6... a6 {[%clk
0:02:53.9]} 7. Nf3 {[%clk 0:02:54.9]} 7... Bg4 {[%clk 0:02:53.5]} 8. Nbd2 {[%clk
0:02:54.8]} 8... e6 {[%clk 0:02:53.5]} 9. h3 {[%clk 0:02:54.9]} 9... Bh5 {[%clk
0:02:52.4]} 10. Qb3 {[%clk 0:02:53]} 10... Rb8 {[%clk 0:02:44.6]} 11. Ne5 {[%clk
0:02:43.8]} 11... Nxe5 {[%clk 0:02:27.6]} 12. dxe5 {[%clk 0:02:44.7]} 12... Nd7
{[%clk 0:02:23.7]} 13. f4 {[%clk 0:02:43.5]} 13... Bc5 {[%clk 0:02:20.1]} 14.
Bf2 {[%clk 0:01:58.4]} 14... Bg6 {[%clk 0:01:40.2]} 15. Bxg6 {[%clk 0:01:47.7]}
15... hxg6 {[%clk 0:01:38.2]} 16. O-O {[%clk 0:01:33.8]} 16... O-O {[%clk
0:01:36.3]} 17. Nf3 {[%clk 0:01:28.6]} 17... Bxf2+ {[%clk 0:01:31.6]} 18. Rxf2
{[%clk 0:01:27.1]} 18... Nc5 {[%clk 0:01:32.1]} 19. Qc2 {[%clk 0:01:23.3]} 19...
Ne4 {[%clk 0:01:32]} 20. Re2 {[%clk 0:01:23.2]} 20... b5 {[%clk 0:01:30.8]} 21.
Rd1 {[%clk 0:01:21.2]} 21... Qb6+ {[%clk 0:01:27.5]} 22. Kh2 {[%clk 0:01:21]}
22... b4 {[%clk 0:01:26.5]} 23. c4 {[%clk 0:01:20.2]} 23... Rfc8 {[%clk
0:01:24.9]} 24. b3 {[%clk 0:01:20.1]} 24... Nc3 {[%clk 0:01:20.7]} 25. cxd5
{[%clk 0:01:04.8]} 25... Nxd5 {[%clk 0:01:16.9]} 26. Qd2 {[%clk 0:00:46.1]}
26... Nc3 {[%clk 0:01:15.1]} 27. Ng5 {[%clk 0:00:41.7]} 27... Rd8 {[%clk
0:00:54.6]} 28. Qe1 {[%clk 0:00:27.9]} 28... Rxd1 {[%clk 0:00:44]} 29. Qh4
{[%clk 0:00:27.7]} 29... Qg1+ {[%clk 0:00:42.9]} 30. Kg3 {[%clk 0:00:27.9]}
30... Nxe2+ {[%clk 0:00:39.6]} 31. Kg4 {[%clk 0:00:28]} 31... Qxg2+ {[%clk
0:00:36]} 0-1

[Event "Early-Titled-Tuesday-Blitz-April-02-2024"]
[Site "Chess.com"]
[Date "2024.04.02"]
[Round "1"]
[White "sakkikuska"]
[Black "Radzio1987"]
[Result "0-1"]
[WhiteElo "2513"]
[BlackElo "2902"]
[TimeControl "180+1"]
[EndTime "8:06:28 PDT"]
[Termination "Radzio1987 won by resignation"]

1. e4 {[%clk 0:03:00.9]} 1... c5 {[%clk 0:02:58.5]} 2. Nf3 {[%clk 0:03:01.2]}
2... d6 {[%clk 0:02:58.8]} 3. d4 {[%clk 0:03:01.8]} 3... cxd4 {[%clk 0:02:59.7]}
4. Nxd4 {[%clk 0:03:02]} 4... Nf6 {[%clk 0:03:00.1]} 5. f3 {[%clk 0:03:02.2]}
5... Nc6 {[%clk 0:02:58.3]} 6. c4 {[%clk 0:03:01.6]} 6... e6 {[%clk 0:02:56.5]}
7. Nc3 {[%clk 0:03:01.7]} 7... Be7 {[%clk 0:02:56]} 8. Be3 {[%clk 0:03:02.1]}
8... O-O {[%clk 0:02:56.2]} 9. Qd2 {[%clk 0:03:00.3]} 9... d5 {[%clk 0:02:54.9]}
10. exd5 {[%clk 0:02:55.5]} 10... exd5 {[%clk 0:02:55.8]} 11. O-O-O {[%clk
0:02:55.5]} 11... a6 {[%clk 0:02:33.8]} 12. cxd5 {[%clk 0:02:33.4]} 12... Nxd5
{[%clk 0:02:27.8]} 13. Nxc6 {[%clk 0:02:21.7]} 13... bxc6 {[%clk 0:02:27.5]} 14.
Nxd5 {[%clk 0:02:15.4]} 14... cxd5 {[%clk 0:02:28.4]} 15. Qxd5 {[%clk
0:02:15.5]} 15... Qc7+ {[%clk 0:02:24.1]} 16. Qc4 {[%clk 0:02:05.2]} 16... Qa5
{[%clk 0:02:08.9]} 17. Kb1 {[%clk 0:01:43.8]} 17... Be6 {[%clk 0:02:08.3]} 18.
Bd2 {[%clk 0:01:43.2]} 18... Qb6 {[%clk 0:01:51.8]} 19. Qa4 {[%clk 0:01:33.4]}
19... Bf6 {[%clk 0:01:33.9]} 20. Qa3 {[%clk 0:01:32.7]} 20... Rfd8 {[%clk
0:01:20.6]} 21. Be2 {[%clk 0:01:28.6]} 21... Bf5+ {[%clk 0:01:06.1]} 22. Ka1
{[%clk 0:01:19.8]} 22... Qf2 {[%clk 0:01:05.9]} 23. Qe3 {[%clk 0:01:01.8]} 23...
Qxg2 {[%clk 0:00:56.6]} 24. Rdg1 {[%clk 0:00:50]} 24... Qh3 {[%clk 0:00:55]} 25.
Rg3 {[%clk 0:00:50]} 25... Qh4 {[%clk 0:00:50.8]} 26. Bc3 {[%clk 0:00:48.1]}
26... Re8 {[%clk 0:00:42.6]} 27. Qf2 {[%clk 0:00:33.1]} 27... Bxc3 {[%clk
0:00:36.9]} 28. Rxg7+ {[%clk 0:00:32.6]} 28... Bxg7 {[%clk 0:00:37.8]} 29. Qxh4
{[%clk 0:00:32.7]} 29... Rxe2 {[%clk 0:00:37.9]} 30. Rg1 {[%clk 0:00:29.9]}
30... Bg6 {[%clk 0:00:33.5]} 0-1